bitfinex/quotes_ETHUSD_20220226
["timestamp","ask_amount","ask_price","bid_price","bid_amount"]
[1645855087932,3.57322421,2776.8,2776.7,0.19389896]
[1645855089232,3.61388828,2776.8,2776.7,0.19389896]
[1645855089832,3.61388828,2776.8,2776.6,0.3]
[1645855090036,3.61388828,2776.8,2776.0,1.0]
[1645855090234,3.61388828,2776.8,2776.0,0.3]
[1645855090634,3.61388828,2776.8,2775.8,0.25]
[1645855090834,3.61388828,2776.8,2775.8,0.46304502]
[1645855091033,0.90055,2776.7,2775.8,0.25]
[1645855091273,0.90055,2776.7,2775.8,0.2118938]
[1645855091475,0.90055,2776.7,2775.7,1.50389127]
[1645855091673,0.90055,2776.7,2775.8,0.17812685]
[1645855091876,0.90055,2776.7,2775.7,0.00432485]
[1645855092278,6.12660809,2776.7,2775.3,1.00281992]
[1645855092478,6.12660809,2776.7,2775.3,0.00281992]
[1645855092479,0.90077,2776.3,2775.3,0.00281992]
[1645855092684,0.511,2776.2,2775.7,0.00432476]
[1645855092980,1.511,2776.2,2775.7,0.00432476]
[1645855093581,1.511,2776.2,2775.3,0.00281992]
[1645855093781,1.511,2776.2,2775.7,0.00432456]
[1645855093984,0.511,2776.2,2775.7,0.00432456]
[1645855094681,0.511,2776.2,2775.3,0.00281992]
[1645855094879,0.511,2776.2,2775.7,0.00432456]
[1645855095130,1.0,2775.8,2775.7,0.00432456]
[1645855095332,1.511,2775.8,2775.7,0.00432456]
[1645855095729,0.511,2775.8,2775.7,0.00432456]
[1645855095929,0.511,2775.8,2775.3,0.00281992]
[1645855096128,0.511,2775.8,2775.2,0.25]
[1645855096129,0.511,2775.8,2775.6,0.00432464]
[1645855097134,0.511,2775.8,2774.8,0.00281992]
[1645855097333,0.511,2775.8,2775.6,0.00432468]
[1645855098341,0.511,2775.8,2774.8,0.19656291]
[1645855098537,0.511,2775.8,2775.6,0.00432468]
[1645855099580,0.511,2775.8,2774.8,0.19656291]
[1645855099779,0.511,2775.8,2775.6,0.00432046]
[1645855100782,0.511,2775.8,2774.9,0.1441]
[1645855100982,0.511,2775.8,2775.6,0.00432046]
[1645855101883,0.511,2775.8,2774.8,0.33638401]
[1645855102081,0.511,2775.8,2774.8,0.63638401]
[1645855102281,0.511,2775.8,2774.8,0.33638401]
[1645855102529,4.111,2775.8,2775.6,0.00432046]
[1645855102744,5.0119101,2775.8,2775.6,0.00432046]
[1645855102937,5.0119101,2775.8,2775.1,0.01728443]
[1645855102938,0.00864091,2775.5,2775.1,0.01728443]
[1645855103141,0.511,2775.4,2775.1,0.01728443]
[1645855103337,0.511,2775.4,2774.8,0.00281992]
[1645855103636,0.511,2775.4,2774.6,0.00281992]
[1645855104037,0.511,2775.4,2774.6,0.20152507]
[1645855104237,0.511,2775.4,2774.7,0.1441]
[1645855104437,0.00864091,2775.5,2774.7,0.32780868]
[1645855104638,0.00864091,2775.5,2774.7,0.62780868]
[1645855105641,0.51964091,2775.5,2774.7,0.48370868]
[1645855106040,0.51964091,2775.5,2775.0,0.00490552]
[1645855106472,1.42058091,2775.5,2775.0,0.00490552]
[1645855106674,1.76488091,2775.5,2775.0,0.00490552]
[1645855107076,1.76488091,2775.5,2774.6,0.00281992]
[1645855107274,9.94911811,2775.5,2775.1,0.00490539]
[1645855107878,0.9010992,2775.4,2775.1,0.00490539]
[1645855108078,0.9010992,2775.4,2774.6,0.00281992]
[1645855108079,0.511,2775.3,2774.6,0.00281992]
[1645855108280,0.511,2775.3,2774.5,0.25]
[1645855108480,1.80236,2775.1,2774.2,0.00281992]
[1645855108679,0.511,2775.0,2774.2,0.00281992]
[1645855108879,0.511,2775.0,2774.0,0.00281992]
[1645855109478,1.80253,2774.9,2774.0,0.00281992]
[1645855109679,0.511,2774.8,2774.0,0.00281992]
[1645855109878,0.90126,2774.7,2774.0,0.00281992]
[1645855110136,0.511,2775.2,2774.1,0.1441]
[1645855110334,0.511,2775.2,2774.2,0.00281992]
[1645855110534,0.511,2775.2,2774.3,0.1441]
[1645855110735,0.511,2775.2,2774.4,0.00281992]
[1645855110936,0.511,2775.2,2774.5,0.0049024]
[1645855111738,0.511,2775.2,2774.5,1.1892957]
[1645855112140,0.511,2775.2,2774.7,0.00490223]
[1645855113041,0.511,2775.2,2774.5,0.00281992]
[1645855113243,0.511,2775.2,2774.8,0.00490215]
[1645855113645,1.1545,2775.4,2774.8,0.00490215]
[1645855113873,3.6,2775.2,2774.8,0.00490215]
[1645855114072,3.6,2775.2,2774.8,0.00772207]
[1645855114277,3.6,2775.2,2774.7,1.7593707]
[1645855114473,3.6,2775.2,2774.7,0.4441]
[1645855114673,3.6,2775.2,2774.6,0.46990251]
[1645855115074,3.6,2775.2,2774.4,0.00281992]
[1645855115472,3.6,2775.2,2774.4,1.08808068]
[1645855115773,3.6,2775.2,2774.8,0.00234729]
[1645855116673,3.6,2775.2,2774.5,0.00281992]
[1645855116873,3.6,2775.2,2774.9,0.00234721]
[1645855117722,3.6,2775.2,2774.5,0.00281992]
[1645855118126,3.6,2775.2,2774.9,0.00489471]
[1645855118825,3.6,2775.2,2774.9,1.35794788]
[1645855119028,3.6,2775.2,2774.9,1.35305317]
[1645855119326,3.6,2775.2,2774.9,1.65794788]
[1645855119624,3.6,2775.2,2775.0,0.16126643]
[1645855120428,3.6,2775.2,2775.0,0.1661611]
[1645855120630,3.6,2775.2,2775.0,0.3102611]
[1645855121270,3.6,2775.2,2775.0,0.2602611]
[1645855121770,3.6,2775.2,2775.0,1.1609111]
[1645855122370,3.6,2775.2,2775.0,0.2602611]
[1645855122574,3.6,2775.2,2775.0,0.11126643]
[1645855122975,3.6,2775.2,2775.0,0.1161611]
[1645855123175,3.6,2775.2,2775.0,0.00489467]
[1645855123374,3.6,2775.2,2775.0,0.20449991]
[1645855123578,3.6,2775.2,2775.0,0.00489467]
[1645855123978,3.6,2775.2,2774.7,11.49906105]
[1645855124275,3.6,2775.2,2775.0,0.00489467]
[1645855125028,3.6,2775.2,2774.7,12.49906105]
[1645855125229,3.6,2775.2,2774.7,12.49624113]
[1645855125428,3.6,2775.2,2775.0,0.00489467]
[1645855126229,3.6,2775.2,2774.8,0.29622199]
[1645855126432,3.6,2775.2,2775.0,0.00489467]
[1645855127032,3.6,2775.2,2775.1,12.12498232]
[1645855127231,3.6,2775.2,2775.1,13.66521276]
[1645855127431,3.52827364,2775.2,2775.1,14.15481489]
[1645855127633,3.52827364,2775.2,2775.1,13.97428445]
[1645855128233,3.52827364,2775.2,2775.1,12.82930213]
[1645855129371,0.00864091,2775.5,2775.1,17.82930213]
[1645855129593,0.00864091,2775.5,2775.4,10.98]
[1645855129769,0.00864091,2775.5,2775.4,11.98]
[1645855129972,0.00864091,2775.5,2775.4,14.54014]
[1645855130169,0.00864091,2775.5,2775.4,16.05180016]
[1645855130369,4.091e-05,2775.5,2775.4,14.73502333]
[1645855130870,4.091e-05,2775.5,2775.4,21.94102333]
[1645855131272,0.00451764,2776.8,2776.7,1.10069117]
[1645855131476,4.5779,2777.6,2776.7,12.08069117]
[1645855131477,0.00451764,2777.4,2776.7,12.08069117]
[1645855131673,0.00451764,2777.4,2776.7,11.28]
[1645855131870,0.00451764,2777.4,2776.7,12.28]
[1645855132535,0.00451764,2777.8,2776.7,1.3]
[1645855132743,1.52168567,2777.7,2776.7,0.3]
[1645855132943,0.00456539,2777.2,2776.7,0.3]
[1645855133542,0.00456539,2777.2,2776.4,15.4124]
[1645855133742,0.00451764,2777.3,2776.5,1.01285309]
[1645855134042,0.00424933,2777.1,2776.5,1.01285309]
[1645855134842,0.00451764,2777.3,2776.5,1.01285309]
[1645855135242,0.00427144,2776.9,2776.5,1.01285309]
[1645855136042,0.00451764,2777.3,2776.4,1.6]
[1645855136285,0.00427151,2776.8,2776.2,1.3]
[1645855136478,0.00427151,2776.8,2776.2,0.3]
[1645855136678,0.00427151,2776.8,2776.1,0.55]
[1645855136881,0.00427151,2776.8,2776.1,0.25]
[1645855137079,0.00427151,2776.8,2776.0,6.89532]
[1645855137080,0.00427151,2776.8,2776.5,1.10771521]
[1645855137280,0.00451764,2777.2,2776.5,1.40771521]
[1645855137479,0.00451764,2777.3,2776.5,1.40771521]
[1645855137682,0.00458783,2776.6,2776.5,1.40771521]
[1645855138083,0.00458783,2776.6,2776.4,0.6]
[1645855138283,0.00458783,2776.6,2776.4,0.3]
[1645855138583,0.00451764,2777.3,2776.1,4.971]
[1645855138785,0.00459699,2776.6,2776.1,12.28]
[1645855138984,0.00459699,2776.6,2776.1,1.3]
[1645855139184,0.00459699,2776.6,2776.2,1.30741059]
[1645855139583,0.00451764,2777.3,2776.2,1.30741059]
[1645855140523,0.00451764,2777.3,2776.2,12.28741059]
[1645855140925,0.00451764,2777.3,2776.7,1.30201346]
[1645855141224,0.00459305,2776.9,2776.7,1.30201346]
[1645855141627,0.00459305,2776.9,2776.7,0.3]
[1645855142029,0.00451764,2777.3,2776.7,0.3]
[1645855142227,0.90035,2777.4,2776.2,11.98]
[1645855142424,0.90035,2777.4,2776.2,12.28]
[1645855142425,0.00475052,2776.9,2776.2,12.28]
[1645855143033,0.00475052,2776.9,2776.4,10.98]
[1645855143231,0.00451764,2777.5,2776.6,10.98]
[1645855143433,0.00451764,2777.6,2776.8,10.98]
[1645855143632,3.5,2778.5,2776.7,0.5751299]
[1645855143633,0.00451764,2777.7,2777.0,11.3397]
[1645855143887,3.385,2778.4,2777.2,10.98]
[1645855143888,0.00451764,2777.8,2777.2,10.98]
[1645855144085,0.00451764,2778.3,2777.2,11.17519648]
[1645855144286,3.6,2777.5,2777.2,12.47519648]
[1645855144483,3.6,2777.5,2777.3,0.22584957]
[1645855145184,3.6,2777.5,2777.2,12.28]
[1645855145382,3.6,2777.5,2777.2,1.52103013]
[1645855145583,3.6,2777.5,2777.3,0.89978]
[1645855146182,3.6044302,2777.5,2777.3,0.89978]
[1645855146482,3.6044302,2777.5,2777.4,1.37353714]
[1645855146683,3.6044302,2777.5,2777.3,0.89978]
[1645855146883,3.6,2777.5,2777.3,0.89978]
[1645855147521,3.6,2777.5,2777.3,12.08753543]
[1645855147728,3.6,2777.5,2777.3,12.38753543]
[1645855147927,3.6,2777.5,2777.4,0.17173337]
[1645855148226,3.6,2777.5,2777.3,13.38753543]
[1645855148227,3.6,2777.5,2777.3,0.89978]
[1645855148427,3.6,2777.5,2777.3,0.15233829]
[1645855148428,3.60443016,2777.5,2777.3,0.15233829]
[1645855148627,3.60443016,2777.5,2777.1,1.7998]
[1645855148628,3.60443016,2777.5,2777.4,1.98124195]
[1645855148827,3.60443016,2777.5,2777.4,2.14717435]
[1645855149427,3.60443016,2777.5,2777.4,1.22330741]
[1645855149428,3.6,2777.5,2777.4,1.22330741]
[1645855149630,3.6,2777.5,2777.4,0.3]
[1645855149832,3.6,2777.5,2777.0,0.1439]
[1645855149833,3.6,2777.5,2777.0,1.3]
[1645855150029,3.6,2777.5,2777.1,8.5018]
[1645855150229,3.6,2777.5,2777.1,7.5018]
[1645855150829,0.00427712,2777.4,2777.1,7.5018]
[1645855151681,0.00427712,2777.4,2777.2,0.19219268]
[1645855151883,3.6,2777.5,2777.2,0.19219268]
[1645855152081,0.00427715,2777.4,2777.2,0.19219268]
[1645855153084,3.6,2777.5,2777.2,0.19219268]
[1645855153284,0.00429251,2777.4,2777.2,0.19219268]
[1645855153487,0.00429251,2777.4,2777.1,8.5018]
[1645855153488,0.0027379,2777.4,2777.1,8.5018]
[1645855153682,0.0027379,2777.4,2777.2,1.05936484]
[1645855153885,0.0027379,2777.4,2777.2,1.24350345]
[1645855154085,0.0027379,2777.4,2777.2,12.22350345]
[1645855154283,3.6,2777.5,2777.3,0.89986]
[1645855154486,3.6,2777.5,2777.3,1.08876663]
[1645855154688,3.6,2777.5,2777.3,1.38876663]
[1645855154888,3.6,2777.5,2777.4,11.17654904]
[1645855155137,1.9026,2778.8,2777.4,11.17654904]
[1645855155138,0.00451764,2778.2,2777.4,11.17654904]
[1645855155335,0.00451764,2778.3,2777.8,0.89971]
[1645855155535,0.00451764,2778.7,2777.8,1.10000474]
[1645855155937,0.00451764,2778.7,2778.3,1.1447265]
[1645855156135,0.00451764,2779.1,2777.9,0.18118422]
[1645855156334,0.00451764,2778.7,2778.2,0.3]
[1645855156535,4.3545,2779.2,2778.0,0.18538238]
[1645855156536,4.40432764,2779.1,2778.0,0.18538238]
[1645855156736,0.90432764,2779.1,2777.9,0.16357792]
[1645855156936,0.90432764,2779.1,2777.9,0.3]
[1645855157139,0.00488759,2778.6,2778.0,0.17409941]
[1645855157340,0.00488759,2778.6,2778.2,1.08104542]
[1645855157539,0.00488759,2778.6,2778.2,1.38104542]
[1645855157944,0.90432764,2779.1,2778.1,0.49407948]
[1645855158146,0.90432764,2779.1,2777.7,3.14765333]
[1645855158345,0.00488764,2778.5,2777.7,3.14765333]
[1645855158545,0.00488764,2778.5,2777.8,7.41146179]
[1645855158791,0.00488764,2778.5,2777.9,0.35244725]
[1645855158982,0.00488764,2778.5,2778.3,1.02090543]
[1645855159184,0.00451764,2778.9,2777.9,0.4439]
[1645855159382,0.51551764,2778.9,2777.9,0.3]
[1645855159586,0.00488781,2778.3,2777.8,8.4999]
[1645855160188,0.00488781,2778.3,2778.0,1.03659502]
[1645855160389,0.51551764,2778.9,2778.0,1.33659502]
[1645855160788,0.00456844,2778.2,2778.0,1.33659502]
[1645855161588,0.00451764,2778.7,2778.0,1.33659502]
[1645855161790,0.0045684,2778.2,2778.0,1.33659502]
[1645855161988,0.0045684,2778.2,2778.0,1.53087692]
[1645855162189,0.0045684,2778.2,2778.1,0.15214612]
[1645855162835,0.00451764,2778.8,2778.1,0.15214612]
[1645855163040,0.00456836,2778.3,2778.1,0.15214612]
[1645855163939,0.00451764,2779.0,2778.1,0.15214612]
[1645855164343,3.30456832,2778.3,2778.1,0.15214612]
[1645855165139,3.3,2778.3,2778.1,0.15214612]
[1645855165341,3.3,2778.3,2778.0,0.3]
[1645855165543,3.30458905,2778.3,2777.9,0.3]
[1645855165742,3.30458905,2778.3,2777.8,8.7196191]
[1645855166490,3.3,2778.3,2777.8,8.7196191]
[1645855166689,0.00458918,2778.2,2777.8,8.7196191]
[1645855167093,0.00458918,2778.2,2777.8,8.4196191]
[1645855167702,3.3,2778.3,2777.8,8.4196191]
[1645855167897,3.3,2778.3,2778.1,1.22931695]
[1645855168100,3.3,2778.3,2778.1,1.40311691]
[1645855168297,3.3,2778.3,2778.1,0.47379996]
[1645855168498,3.3,2778.3,2778.2,0.18509385]
[1645855168898,3.3,2778.3,2777.9,0.15260318]
[1645855169401,3.3,2778.3,2777.9,1.38208431]
[1645855169900,3.3,2778.3,2777.9,0.15260318]
[1645855170126,3.3,2778.3,2777.8,8.9958968]
[1645855170328,0.00458743,2778.2,2777.8,8.6958968]
[1645855170529,0.00458743,2778.2,2777.8,8.4999]
[1645855170732,0.00458743,2778.2,2777.8,8.1999]
[1645855171430,0.00458743,2778.2,2777.8,7.1999]
[1645855171431,3.5,2778.2,2777.8,7.1999]
[1645855171632,0.00458752,2778.1,2777.8,5.57706445]
[1645855171830,0.00458752,2778.1,2778.0,19.489]
[1645855172031,0.51558752,2778.1,2778.0,19.489]
[1645855172233,4.01558752,2778.1,2778.0,19.489]
[1645855172435,4.01558752,2778.1,2778.0,18.1088]
[1645855172638,4.01558752,2778.1,2778.0,1.2295]
[1645855172838,0.51558752,2778.1,2778.0,1.2295]
[1645855173037,0.511,2778.1,2778.0,1.2295]
[1645855175178,2.03251875,2778.1,2778.0,1.2295]
[1645855177179,2.03251875,2778.1,2778.0,0.30451519]
[1645855177382,7.03251875,2778.1,2778.0,0.30451519]
[1645855177642,3.5,2778.0,2777.8,0.57737663]
[1645855177841,3.40045,2777.8,2777.0,0.25]
[1645855178042,1.80092,2777.5,2776.2,3.39166109]
[1645855178241,0.511,2777.4,2776.1,0.25]
[1645855178448,2.70216,2777.1,2776.1,0.25]
[1645855178642,0.511,2777.0,2776.1,0.25]
[1645855179940,0.90062,2776.9,2775.9,0.00430403]
[1645855180142,0.511,2776.8,2775.9,0.00430403]
[1645855180541,0.511,2776.8,2775.9,0.00861814]
[1645855180742,0.511,2776.8,2775.9,0.00431411]
[1645855181384,0.511,2776.8,2776.1,1.4110703]
[1645855181587,0.511,2776.8,2776.2,3.5]
[1645855181786,0.00430993,2777.1,2776.2,4.65376977]
[1645855182187,0.00430993,2777.1,2776.2,1.15376977]
[1645855182588,0.00430993,2777.1,2776.1,2.21667345]
[1645855182788,0.00430993,2777.1,2776.1,1.91667345]
[1645855182988,0.00431017,2777.1,2776.1,1.91667345]
[1645855183789,1.41142,2777.3,2776.1,1.91667345]
[1645855183988,1.41142,2777.3,2776.1,1.7110703]
[1645855184188,0.00430853,2777.1,2776.1,1.7110703]
[1645855184387,0.00430853,2777.1,2776.1,0.3]
[1645855184589,0.00430853,2777.1,2775.9,4.12051841]
[1645855184791,0.00430853,2777.1,2775.9,1.00431032]
[1645855184792,0.511,2777.0,2775.9,1.00431032]
[1645855185032,0.511,2777.0,2775.9,1.0]
[1645855185230,0.8707,2777.0,2775.6,1.33904477]
[1645855185430,0.511,2777.0,2775.8,1.380404]
[1645855185631,0.511,2777.0,2775.9,0.00431024]
[1645855186032,0.90055,2776.9,2775.9,0.00431024]
[1645855186236,1.41155,2776.9,2775.6,1.60965502]
[1645855186633,1.41155,2776.9,2775.9,0.00431044]
[1645855187439,1.41155,2776.9,2775.7,1.58895926]
[1645855187639,1.41155,2776.9,2775.9,0.00460215]
[1645855187844,0.511,2776.9,2775.9,0.00460215]
[1645855188440,0.00460024,2777.1,2775.9,0.00460215]
[1645855188642,4.71143,2777.3,2775.8,1.41930306]
[1645855188877,4.71143,2777.3,2775.9,0.00458249]
[1645855188878,0.00458058,2777.1,2775.9,0.00458249]
[1645855189275,0.51558058,2777.1,2775.9,0.00458249]
[1645855189875,0.511,2777.1,2775.8,1.41930306]
[1645855190076,0.51558068,2777.1,2775.9,0.00458258]
[1645855191177,0.511,2777.1,2775.8,1.41930306]
[1645855191382,0.51558068,2777.1,2775.9,0.00458258]
[1645855191783,0.00458068,2777.1,2775.9,0.00458258]
[1645855192180,4.20043,2777.3,2775.8,1.41930306]
[1645855192631,4.20043,2777.3,2775.9,0.00458258]
[1645855192632,0.00458068,2777.1,2775.9,0.00458258]
[1645855193432,3.3,2777.3,2776.2,0.90026]
[1645855193633,3.3,2777.3,2776.0,3.57081816]
[1645855193832,0.004582,2777.1,2776.0,3.57081816]
[1645855194037,0.004582,2777.1,2776.0,4.65939]
[1645855194235,0.004582,2777.1,2776.1,0.21478454]
[1645855194634,3.3,2777.3,2776.1,0.21478454]
[1645855195035,0.00458209,2777.1,2776.1,0.21478454]
[1645855196035,3.3,2777.3,2776.3,1.25994]
[1645855196309,0.00458209,2777.1,2776.4,0.3597]
[1645855196498,0.00458209,2777.1,2776.4,0.53676609]
[1645855196698,0.00458209,2777.1,2776.9,1.11535135]
[1645855196896,0.00458209,2777.1,2776.9,1.41535135]
[1645855197099,3.3,2777.3,2777.0,3.8597]
[1645855197300,3.3,2777.3,2777.0,15.8397]
[1645855197499,3.3,2777.3,2777.2,0.3597]
[1645855197698,3.3,2777.3,2777.2,8.03069849]
[1645855198098,3.3,2777.3,2777.2,9.8611]
[1645855198298,0.4281,2777.3,2777.2,20.8411]
[1645855198500,0.0001,2777.3,2777.2,9.8611]
[1645855199504,0.0001,2777.3,2777.2,13.3611]
[1645855199702,0.0001,2777.3,2777.2,9.8611]
[1645855199904,0.0001,2777.3,2777.2,8.2014]
[1645855200141,0.0001,2777.3,2777.2,6.60786203]
[1645855201440,0.0001,2777.3,2777.2,6.90786203]
[1645855201639,0.0001,2777.3,2777.2,7.90786203]
[1645855201843,0.0001,2777.3,2777.2,6.60786203]
[1645855202241,1.00763428,2778.3,2777.2,6.60786203]
[1645855202540,0.02003886,2777.6,2777.2,6.60786203]
[1645855202742,1.41125,2777.8,2777.2,6.60786203]
[1645855204079,0.02003886,2777.5,2777.2,6.60786203]
[1645855204282,0.511,2777.6,2777.2,6.60786203]
[1645855204485,0.511,2777.5,2777.2,4.98467588]
[1645855204680,1.41139,2777.5,2777.2,4.98467588]
[1645855205680,0.02003886,2777.4,2777.2,4.98467588]
[1645855205883,0.511,2777.3,2777.2,4.98467588]
[1645855213433,0.02003886,2777.4,2777.2,4.98467588]
[1645855213634,0.00463302,2777.5,2777.2,4.98467588]
[1645855213831,0.00463302,2777.5,2777.2,5.98467588]
[1645855214031,1.01456206,2777.9,2777.2,5.98467588]
[1645855214235,1.01456206,2777.9,2777.5,1.2275076]
[1645855214433,1.01456206,2777.9,2777.6,6.49771698]
[1645855214434,1.0100684,2777.9,2777.6,6.49771698]
[1645855215251,0.02003886,2777.8,2777.6,6.49771698]
[1645855215452,1.0100684,2777.9,2777.6,6.49771698]
[1645855215652,1.01464625,2777.9,2777.6,6.49771698]
[1645855216456,0.1098584,2777.9,2777.6,6.49771698]
[1645855216656,0.1098584,2777.9,2777.6,7.49771698]
[1645855216855,0.02003886,2777.8,2777.6,7.96705697]
[1645855217057,0.02003886,2777.8,2777.6,7.95184776]
[1645855217257,0.02003886,2777.8,2777.6,7.79771698]
[1645855217456,0.11443625,2777.9,2777.7,3.70192145]
[1645855217658,0.1098584,2777.9,2777.7,3.70192145]
[1645855217855,0.1098584,2777.9,2777.7,1.3]
[1645855218054,0.1098584,2777.9,2777.8,0.17532572]
[1645855218255,0.1098584,2777.9,2777.8,0.3]
[1645855218455,0.12989726,2777.9,2777.8,0.3]
[1645855218888,3.42989726,2777.9,2777.7,0.3]
[1645855219087,3.32841346,2777.9,2777.6,7.79771698]
[1645855219491,3.32841346,2777.9,2777.8,6.49771698]
[1645855219692,3.32841346,2777.9,2777.8,12.99543396]
[1645855219894,3.34845232,2777.9,2777.8,14.29543396]
[1645855220505,0.04845232,2777.9,2777.8,14.29543396]
[1645855221097,0.04845232,2777.9,2777.8,13.99543396]
[1645855223143,0.04845232,2777.9,2777.8,12.99543396]
[1645855224544,0.04693679,2777.9,2777.8,13.99543396]
[1645855226681,0.04693679,2777.9,2777.8,14.29543396]
[1645855227786,0.04693679,2777.9,2777.8,14.65513396]
[1645855227992,0.02841346,2778.2,2777.8,14.65513396]
[1645855228188,0.02841346,2778.2,2778.0,0.3597]
[1645855228389,0.02841346,2778.2,2778.0,0.54713382]
[1645855228587,0.02841346,2778.2,2778.1,6.85741698]
[1645855228789,0.02841346,2778.2,2778.1,14.5063307]
[1645855231644,0.21971682,2778.8,2778.1,14.5063307]
[1645855231645,0.21971682,2778.8,2778.3,5.8597]
[1645855231846,0.21971682,2778.8,2778.5,0.3597]
[1645855232045,0.21971682,2778.8,2778.7,0.3597]
[1645855232244,0.02841346,2779.6,2778.7,0.6597]
[1645855232448,1.347e-05,2778.8,2778.7,0.6597]
[1645855233802,1.347e-05,2778.8,2778.7,7.15741698]
[1645855233998,1.347e-05,2778.8,2778.7,17.15513396]
[1645855234192,1.347e-05,2778.8,2778.7,18.15513396]
[1645855234788,1.347e-05,2778.8,2778.7,29.13513396]
[1645855234989,1.347e-05,2778.8,2778.7,29.34822309]
[1645855236198,1.347e-05,2778.8,2778.7,29.13513396]
[1645855236396,1.347e-05,2778.8,2778.7,30.13513396]
[1645855237647,1.347e-05,2778.8,2778.7,35.13513396]
[1645855237949,0.01954057,2780.1,2778.9,11.3397]
[1645855238152,0.01954057,2780.1,2779.1,11.3397]
[1645855238346,1.1721,2780.8,2779.3,11.3397]
[1645855238547,0.08144494,2780.5,2779.8,1.30275619]
[1645855238747,0.08144494,2780.5,2779.3,11.6397]
[1645855238748,0.08144494,2780.5,2779.7,0.3]
[1645855239148,0.08144494,2780.5,2779.9,6.49771698]
[1645855239349,0.08144494,2780.5,2780.2,6.49771698]
[1645855239547,0.98086994,2780.5,2780.2,6.49771698]
[1645855240049,0.00252656,2780.3,2780.2,6.49771698]
[1645855241050,0.00488606,2780.4,2780.2,6.49771698]
[1645855242086,0.98081494,2780.5,2780.2,7.49771698]
[1645855242288,0.00488602,2780.4,2780.2,7.49771698]
[1645855243293,0.98081494,2780.5,2780.2,7.49771698]
[1645855243489,0.00488602,2780.4,2780.2,7.49771698]
[1645855243887,0.00488602,2780.4,2780.2,6.49771698]
[1645855244492,0.1438,2781.0,2780.2,6.49771698]
[1645855244493,10.8582019,2781.5,2780.6,1.01506818]
[1645855244695,0.01954114,2780.9,2780.6,1.01506818]
[1645855244893,0.01954114,2780.9,2780.6,0.3]
[1645855245138,0.01954114,2780.9,2780.3,12.37376705]
[1645855245341,0.511,2780.8,2780.3,11.37376705]
[1645855245744,5.0,2780.4,2780.3,11.37376705]
[1645855245946,0.511,2780.4,2780.3,11.37376705]
[1645855250595,0.16288988,2780.5,2780.3,11.37376705]
[1645855250796,0.16752052,2780.5,2780.3,11.37376705]
[1645855250997,0.16752052,2780.5,2779.7,1.0]
[1645855251196,0.16752052,2780.5,2780.2,6.49771698]
[1645855251400,0.16752052,2780.5,2780.2,11.37376705]
[1645855251401,0.17196658,2780.5,2780.2,11.37376705]
[1645855251599,0.16752052,2780.5,2780.2,12.44120891]
[1645855251902,0.16288988,2780.5,2780.2,12.37376705]
[1645855252100,0.16752052,2780.5,2780.2,12.37376705]
[1645855252950,0.16288988,2780.5,2780.2,12.37376705]
[1645855253148,0.16747044,2780.5,2780.2,12.37376705]
[1645855253348,0.16747044,2780.5,2780.2,11.37376705]
[1645855253747,0.0860255,2780.5,2780.2,11.37376705]
[1645855254149,0.08144494,2780.5,2780.2,12.67376705]
[1645855254350,0.0860255,2780.5,2780.2,12.67376705]
[1645855255349,0.08144494,2780.5,2780.2,12.67376705]
[1645855255550,0.08397122,2780.5,2780.2,12.67376705]
[1645855255749,0.16541616,2780.5,2780.2,12.67376705]
[1645855255958,0.01010361,2780.9,2780.3,4.05519093]
[1645855256153,0.01010361,2780.9,2780.4,0.15204154]
[1645855256394,0.01010361,2780.9,2780.3,16.03793842]
[1645855256595,0.01010361,2780.9,2780.8,1.07417948]
[1645855256899,0.00444606,2781.6,2780.8,0.3]
[1645855257098,0.84902,2781.7,2780.8,0.3]
[1645855257293,1.52428763,2781.6,2780.8,0.3]
[1645855257496,0.85346606,2781.7,2780.8,0.3]
[1645855257697,1.51984262,2781.6,2780.6,12.83084009]
[1645855257897,1.52428868,2781.6,2780.6,12.67376705]
[1645855258097,1.51984262,2781.5,2780.6,12.67376705]
[1645855258300,1.51984262,2781.5,2780.7,1.11959855]
[1645855258702,1.51984262,2781.5,2780.6,11.37376705]
[1645855259098,0.00444606,2781.6,2780.6,11.37376705]
[1645855259298,0.00488877,2781.2,2780.6,11.37376705]
[1645855259699,0.00488877,2781.2,2780.7,1.04432625]
[1645855259902,0.00488877,2781.2,2780.6,11.93861594]
[1645855260132,0.00488877,2781.2,2780.6,13.23861594]
[1645855260331,0.00444606,2781.6,2780.6,13.23861594]
[1645855260733,0.00488889,2781.0,2780.6,13.23861594]
[1645855261133,0.00488889,2781.0,2780.6,12.28011925]
[1645855261335,0.00488889,2781.0,2780.7,0.00407163]
[1645855261533,0.00444606,2781.6,2780.7,0.00407163]
[1645855261736,0.00488898,2780.9,2780.7,0.00407163]
[1645855262533,0.51588898,2780.9,2780.7,0.00407163]
[1645855263137,0.00488898,2780.9,2780.7,0.00407163]
[1645855263438,0.51588898,2780.9,2780.7,0.00407163]
[1645855264084,0.511,2780.9,2780.7,0.00407163]
[1645855264482,0.511,2780.9,2780.2,0.00407163]
[1645855265283,0.90375166,2781.0,2780.2,0.00407163]
[1645855265284,0.00444606,2781.0,2780.2,0.00407163]
[1645855265483,0.00444606,2781.2,2780.2,0.00407163]
[1645855266286,1.41465606,2781.2,2780.2,0.00407163]
[1645855267285,3.5,2781.1,2780.2,0.00407163]
[1645855267532,0.00444606,2781.0,2780.2,0.00407163]
[1645855267736,0.00444606,2781.0,2780.6,10.79689254]
[1645855267935,3.5,2781.1,2780.6,10.79689254]
[1645855267936,0.00466459,2780.8,2780.6,10.79689254]
[1645855268937,8.86465606,2781.2,2780.6,10.79689254]
[1645855269140,0.00466455,2780.8,2780.6,10.79689254]
[1645855269737,0.00466455,2780.8,2780.6,11.79689254]
[1645855270139,0.00444606,2781.1,2780.6,11.79689254]
[1645855270339,0.00466455,2780.8,2780.6,11.79689254]
[1645855270839,1.36932061,2781.2,2780.7,0.00407163]
[1645855271294,1.51992981,2781.1,2780.7,0.00407163]
[1645855271985,3.5,2781.0,2780.7,0.00407163]
[1645855272187,2.41926041,2780.9,2780.7,0.00407163]
[1645855272385,1.51992981,2780.8,2780.7,0.00407163]
[1645855272992,1.51992981,2780.8,2780.7,5.9249141]
[1645855273189,1.51992981,2780.8,2780.7,10.80096417]
[1645855273389,0.00251726,2781.0,2780.7,10.80096417]